bitfinex-derivatives/quotes_BTCF0:USTF0_20251118
["timestamp","ask_amount","ask_price","bid_price","bid_amount"]
[1763454950174,0.00016448,91204.0,91203.0,0.04349]
[1763454951766,0.09264,91234.0,91203.0,0.04349]
[1763454952067,0.16486375,91230.0,91229.0,0.04349]
[1763454952383,0.09835368,91248.0,91230.0,0.00219803]
[1763454952766,0.16486375,91247.0,91230.0,0.00236251]
[1763454953572,0.01099391,91248.0,91247.0,0.04349]
[1763454953874,0.02277448,91248.0,91247.0,0.04349]
[1763454954783,0.02261,91237.0,91236.0,0.05738]
[1763454954978,0.00016448,91248.0,91240.0,0.00219803]
[1763454956379,0.04516,91241.0,91240.0,0.04568803]
[1763454957473,0.04516,91241.0,91240.0,0.00219803]
[1763454957780,0.04469,91231.0,91230.0,0.0222]
[1763454957975,0.04469,91231.0,91230.0,0.02293267]
[1763454958372,0.01405448,91248.0,91210.0,0.21837529]
[1763454958373,0.00219803,91230.0,91210.0,0.21837529]
[1763454958575,0.04469,91221.0,91220.0,0.02293267]
[1763454958775,0.00219803,91230.0,91211.0,0.00016439]
[1763454958776,0.04469,91212.0,91211.0,0.00016439]
[1763454959978,0.04469,91212.0,91211.0,0.04557439]
[1763454960177,0.01093,91224.0,91211.0,0.04557439]
[1763454960379,0.00219803,91220.0,91211.0,0.04557439]
[1763454960574,0.04469,91212.0,91211.0,0.04557439]
[1763454960782,0.00016439,91230.0,91212.0,0.01265]
[1763454960971,0.00016439,91230.0,91220.0,0.00073267]
[1763454961285,0.00236242,91230.0,91229.0,0.04541]
[1763454961578,0.02423242,91230.0,91229.0,0.0222]
[1763454961779,0.02423242,91230.0,91229.0,0.04541]
[1763454961780,0.00236242,91230.0,91229.0,0.04541]
[1763454962477,0.00016439,91230.0,91229.0,0.04541]
[1763454963077,0.00236242,91230.0,91229.0,0.04541]
[1763454963470,0.04705242,91230.0,91229.0,0.04541]
[1763454963876,0.04705242,91230.0,91229.0,0.0222]
[1763454965480,0.04705242,91230.0,91229.0,0.04541]
[1763454965674,0.00236242,91230.0,91229.0,0.04541]
[1763454965872,0.00016439,91230.0,91229.0,0.04541]
[1763454966075,0.33847,91260.0,91259.0,0.0222]
[1763454966280,0.02406803,91260.0,91259.0,0.04541]
[1763454966476,0.18761999,91260.0,91259.0,0.04541]
[1763454967079,0.0129882,91260.0,91259.0,0.04541]
[1763454967684,0.00219803,91260.0,91259.0,0.04541]
[1763454970678,0.00219803,91260.0,91250.0,0.21853968]
[1763454970679,0.04469,91251.0,91250.0,0.00016439]
[1763454970887,0.00219803,91250.0,91218.0,0.02899499]
[1763454971178,0.02187,91231.0,91230.0,0.04614267]
[1763454971381,0.00219803,91230.0,91200.0,0.01265]
[1763454971694,0.04469,91221.0,91220.0,0.00073267]
[1763454972383,0.04469,91221.0,91220.0,0.04614267]
[1763454972769,0.04469,91221.0,91220.0,0.02293267]
[1763454973685,0.04469,91221.0,91220.0,0.04614267]
[1763454973892,0.02187,91221.0,91220.0,0.04614267]
[1763454974180,0.00016439,91230.0,91229.0,0.04541]
[1763454974390,0.00236242,91230.0,91229.0,0.04541]
[1763454975184,0.00236242,91230.0,91221.0,0.01265]
[1763454975380,0.00236242,91230.0,91220.0,0.21910796]
[1763454975988,0.01392,91224.0,91220.0,0.21910796]
[1763454976381,0.00010387,91223.0,91220.0,0.21910796]
[1763454976686,0.00010387,91223.0,91220.0,0.00073267]
[1763454976890,0.00016439,91230.0,91221.0,0.4]
[1763454977182,0.00016439,91230.0,91221.0,0.1096]
[1763454977386,0.00236242,91230.0,91222.0,0.02854759]
[1763454977574,0.00236242,91230.0,91223.0,0.02854759]
[1763454977778,0.00236242,91230.0,91220.0,0.21910796]
[1763454977980,0.00236242,91230.0,91221.0,0.02854906]
[1763454978283,0.01392,91224.0,91222.0,0.02854906]
[1763454978591,0.01392,91224.0,91223.0,0.02854906]
[1763454979084,0.01392,91224.0,91220.0,0.00073267]
[1763454980174,0.01392,91224.0,91221.0,0.02857938]
[1763454980379,0.01392,91224.0,91222.0,0.02857938]
[1763454980583,0.01392,91224.0,91223.0,0.02858066]
[1763454980787,0.01392,91224.0,91220.0,0.00073267]
[1763454980991,0.01392,91224.0,91221.0,0.02858089]
[1763454981189,0.01392,91224.0,91222.0,0.02858089]
[1763454981380,0.01392,91224.0,91223.0,0.02858089]
[1763454981991,0.00016439,91230.0,91223.0,0.02858089]
[1763454982287,0.05881964,91254.0,91224.0,0.13818089]
[1763454982485,0.044,91241.0,91240.0,0.00073267]
[1763454982691,0.02117,91241.0,91240.0,0.00073267]
[1763454983784,0.044,91241.0,91240.0,0.00073267]
[1763454983979,0.30098,91248.0,91240.0,0.00073267]
[1763454984678,0.03506,91248.0,91240.0,0.00073267]
[1763454984888,0.01389,91248.0,91240.0,0.00073267]
[1763454986678,0.01389,91248.0,91241.0,0.02880055]
[1763454986894,0.01389,91248.0,91240.0,0.00073267]
[1763454987084,0.01389,91248.0,91241.0,0.02880039]
[1763454987285,0.01389,91248.0,91240.0,0.00073267]
[1763454987486,0.01389,91248.0,91241.0,0.02879189]
[1763454987690,0.01389,91248.0,91240.0,0.00073267]
[1763454987989,0.01389,91248.0,91241.0,0.02879238]
[1763454988192,0.01389,91248.0,91240.0,0.00073267]
[1763454989091,0.01389,91248.0,91241.0,0.02879104]
[1763454989290,0.01389,91248.0,91240.0,0.00073267]
[1763454989887,0.00016439,91250.0,91241.0,0.0287914]
[1763454990193,0.00236242,91250.0,91242.0,0.1383514]
[1763454990392,0.00236242,91250.0,91240.0,0.00073267]
[1763454990592,0.00236242,91250.0,91241.0,0.02878431]
[1763454990792,0.00236242,91250.0,91242.0,0.02878431]
[1763454991099,0.00236242,91250.0,91243.0,0.02878431]
[1763454991283,0.00236242,91250.0,91240.0,0.21910796]
[1763454991488,0.00016439,91250.0,91241.0,0.13850251]
[1763454991688,0.00016439,91250.0,91242.0,0.02878081]
[1763454991895,0.00016439,91250.0,91243.0,0.02878081]
[1763454992084,0.00016439,91250.0,91244.0,0.02878081]
[1763454992283,0.00016439,91250.0,91245.0,0.02878081]
[1763454992489,0.00016439,91250.0,91246.0,0.02878081]
[1763454992789,0.01093,91260.0,91247.0,0.02878081]
[1763454992988,0.01312803,91260.0,91250.0,0.00073267]
[1763454993193,0.01312803,91260.0,91250.0,0.21910796]
[1763454993495,0.01267,91272.0,91250.0,0.21910796]
[1763454993496,0.03475,91272.0,91250.0,0.21910796]
[1763454993793,0.04602242,91270.0,91262.0,0.21837529]
[1763454994991,0.00236242,91270.0,91262.0,0.21837529]
[1763454995196,0.02444242,91270.0,91262.0,0.21837529]
[1763454995497,0.04602242,91270.0,91262.0,0.21837529]
[1763454995690,0.00236242,91270.0,91260.0,0.21910796]
[1763454996090,0.04602242,91270.0,91260.0,0.00073267]
[1763454996295,0.00016439,91270.0,91260.0,0.00073267]
[1763454996486,0.00016439,91270.0,91261.0,0.13829067]
[1763454996686,0.00016439,91270.0,91262.0,0.02873067]
[1763454996891,0.00016439,91270.0,91263.0,0.02873067]
[1763454997090,0.00016439,91270.0,91264.0,0.02873067]
[1763454997290,0.00236242,91270.0,91265.0,0.02873067]
[1763454997497,0.00236242,91270.0,91266.0,0.02873067]
[1763454997699,0.005,91276.0,91267.0,0.02873067]
[1763454998004,0.005,91276.0,91270.0,0.00073267]
[1763454998005,0.00483551,91276.0,91270.0,0.00073267]
[1763454998202,0.00483551,91276.0,91271.0,0.13829067]
[1763454998398,0.00483551,91276.0,91272.0,0.02868491]
[1763454998702,0.00483551,91276.0,91273.0,0.02868453]
[1763454998997,0.00483551,91276.0,91273.0,0.10956]
[1763454999194,0.02427743,91310.0,91270.0,0.00073267]
[1763454999195,0.0132,91310.0,91274.0,0.02867885]
[1763454999393,0.02235387,91286.0,91280.0,0.00073267]
[1763454999797,0.00027387,91286.0,91280.0,0.00073267]
[1763455001195,0.04366,91281.0,91280.0,0.00073267]
[1763455001894,0.04366,91272.0,91271.0,0.00016439]
[1763455003689,0.0132,91245.0,91240.0,0.27436706]
[1763455003896,0.04366,91241.0,91240.0,0.27509973]
[1763455004093,0.04366,91241.0,91240.0,0.00073267]
[1763455007808,0.0132,91245.0,91240.0,0.00073267]
[1763455008102,0.03528,91245.0,91240.0,0.00073267]
[1763455008898,0.04366,91241.0,91240.0,0.00073267]
[1763455009895,0.04366,91241.0,91231.0,0.00016439]
[1763455009896,0.05686,91234.0,91231.0,0.00016439]
[1763455010208,0.04366,91232.0,91231.0,4.39e-06]
[1763455010409,0.04366,91232.0,91210.0,0.27436706]
[1763455010410,0.04366,91213.0,91210.0,0.27436706]
[1763455010595,0.04366,91213.0,91210.0,0.00073267]
[1763455011310,0.04376734,91213.0,91210.0,0.00073267]
[1763455011900,0.02218734,91213.0,91210.0,0.00073267]
[1763455012105,0.04376734,91213.0,91210.0,0.00073267]
[1763455012306,0.00010734,91213.0,91210.0,0.00073267]
[1763455012510,0.04376734,91213.0,91212.0,0.03048946]
[1763455012699,0.04376734,91213.0,91212.0,0.00173267]
[1763455013010,0.04376734,91213.0,91203.0,0.00016439]
[1763455013011,0.04366,91207.0,91203.0,0.00016439]
[1763455013206,0.04366,91197.0,91196.0,0.00423026]
[1763455013411,0.04376734,91197.0,91196.0,0.00423026]
[1763455014708,0.04376734,91197.0,91196.0,2.6e-07]
[1763455017918,0.05709,91188.0,91187.0,0.00016448]
[1763455018502,0.00027182,91197.0,91196.0,0.00162]
[1763455019705,0.00027182,91197.0,91196.0,0.1113964]
[1763455019904,0.00027182,91197.0,91196.0,0.5113964]
[1763455020114,0.00027182,91197.0,91196.0,0.6210364]
[1763455020307,0.08605437,91243.0,91223.0,0.00108]
[1763455020512,0.08605437,91243.0,91242.0,0.00108]
[1763455020810,0.0132,91248.0,91247.0,0.00108]
[1763455021012,0.00219803,91250.0,91249.0,0.00108]
[1763455021411,0.04449,91241.0,91240.0,0.00016439]
[1763455021613,0.00016439,91259.0,91240.0,0.00124439]
[1763455021805,0.00219803,91250.0,91249.0,0.27544706]
[1763455022007,0.00219803,91250.0,91249.0,0.00108]
[1763455022710,0.02487803,91250.0,91249.0,0.00108]
[1763455022904,0.04668803,91250.0,91240.0,0.27453145]
[1763455023110,0.04449,91241.0,91240.0,0.27453145]
[1763455023317,0.04449,91241.0,91240.0,0.00016439]
[1763455023502,0.00016439,91259.0,91240.0,0.00124439]
[1763455023710,0.04668803,91250.0,91249.0,0.27436706]
[1763455023910,0.04449,91241.0,91240.0,0.00016439]
[1763455025214,0.00027399,91246.0,91245.0,0.00108]
[1763455026003,0.02206399,91246.0,91245.0,0.00108]
[1763455026411,0.02206399,91246.0,91240.0,0.00016439]
[1763455026412,0.04485,91241.0,91240.0,0.00016439]
[1763455026918,0.00027399,91246.0,91240.0,0.00124439]
[1763455027108,0.02319399,91246.0,91245.0,0.00054]
[1763455027308,0.04512399,91246.0,91240.0,0.00016439]
[1763455027504,0.04322,91241.0,91240.0,0.00016439]
[1763455029309,0.04497759,91241.0,91240.0,0.00016439]
[1763455029617,0.00175759,91241.0,91240.0,0.00124439]
[1763455031416,0.00175759,91241.0,91240.0,0.00016439]
[1763455031417,0.04497759,91241.0,91240.0,0.00016439]
[1763455032621,0.00175759,91241.0,91240.0,0.00124439]
[1763455032820,0.00175759,91241.0,91240.0,0.03011218]
[1763455033717,0.00175759,91241.0,91240.0,0.02903218]
[1763455033718,0.04497759,91241.0,91240.0,0.02903218]
[1763455035324,0.04497759,91241.0,91240.0,0.00016439]
[1763455036413,0.04322,91232.0,91231.0,0.27436706]
[1763455036715,0.04322,91232.0,91231.0,0.02887246]
[1763455036911,0.04322,91211.0,91210.0,0.27436706]
[1763455037113,0.04322,91203.0,91201.0,0.02906593]
[1763455037310,0.01326,91208.0,91207.0,0.0027]
[1763455037520,0.00219803,91210.0,91200.0,0.41320379]
[1763455037709,0.00219803,91210.0,91200.0,0.30343299]
[1763455038218,0.00016439,91217.0,91204.0,0.1097661]
[1763455038418,0.00016439,91217.0,91213.0,0.1097553]
[1763455038624,0.00016439,91217.0,91214.0,0.1096]
[1763455039121,0.00016439,91217.0,91215.0,0.1096]
[1763455039421,0.00016439,91217.0,91211.0,0.03865999]
[1763455039621,0.00016439,91217.0,91212.0,0.1097561]
[1763455039925,0.00016439,91217.0,91215.0,0.109753]
[1763455040119,0.01326,91234.0,91222.0,0.1097441]
[1763455040423,0.01326,91260.0,91224.0,0.27436706]
[1763455040626,0.00219803,91250.0,91236.0,0.27436706]
[1763455040823,0.00219803,91240.0,91236.0,0.27436706]
[1763455041118,0.02188,91237.0,91236.0,0.27436706]
[1763455041323,0.02188,91237.0,91229.0,0.00016439]
[1763455042225,0.01326,91236.0,91229.0,0.00016439]
[1763455043719,0.01426,91236.0,91229.0,0.00016439]
[1763455044319,0.02188,91230.0,91229.0,0.00016439]
[1763455044521,0.01326,91236.0,91229.0,0.00016439]
[1763455044722,0.03514,91236.0,91229.0,0.00016439]
[1763455045621,0.00219803,91240.0,91229.0,0.21950029]
[1763455045826,0.001,91236.0,91232.0,0.02895637]
[1763455046023,0.001,91236.0,91232.0,0.13868907]
[1763455046424,0.001,91236.0,91234.0,0.0289876]
[1763455046625,0.01426,91236.0,91234.0,0.0289876]
[1763455047127,0.001,91236.0,91235.0,0.0289876]
[1763455047327,0.001,91236.0,91232.0,0.109732]
[1763455048114,0.0437,91232.0,91231.0,0.03865999]
[1763455048317,0.04589803,91230.0,91229.0,0.00016439]
[1763455048718,0.04589803,91230.0,91229.0,0.03890589]
[1763455048919,0.04589803,91230.0,91229.0,0.02953883]
[1763455050427,0.00319803,91230.0,91229.0,0.02953883]
[1763455051114,0.001,91230.0,91229.0,0.13913883]
[1763455051429,0.001,91230.0,91229.0,0.08752881]
[1763455052031,0.001,91230.0,91229.0,0.19729728]
[1763455052218,0.001,91230.0,91229.0,0.08770291]
[1763455052414,0.001,91230.0,91229.0,0.02953883]
[1763455052619,0.01323,91236.0,91229.0,0.02953883]
[1763455052925,0.05693,91236.0,91235.0,0.03877587]
[1763455053126,0.05693,91236.0,91235.0,0.06815031]
[1763455054426,0.00016439,91247.0,91245.0,0.1097175]
[1763455054630,0.00016439,91247.0,91245.0,0.51429194]
[1763455054929,0.00016439,91247.0,91245.0,0.57245672]
[1763455055228,0.00016439,91247.0,91245.0,0.46269164]
[1763455055529,0.00016439,91247.0,91245.0,0.40457444]
[1763455055722,0.04397399,91246.0,91245.0,0.02937444]
[1763455056518,0.00027399,91246.0,91245.0,0.02937444]
[1763455056725,0.00027399,91246.0,91245.0,0.13893444]
[1763455056920,0.00027399,91246.0,91245.0,0.02937444]
[1763455057120,0.00027399,91246.0,91245.0,0.13893444]
[1763455057321,0.00027399,91246.0,91245.0,0.02937444]
[1763455058125,0.00027399,91246.0,91245.0,0.13893444]
[1763455058324,0.00027399,91246.0,91245.0,0.02937444]
[1763455058525,0.00027399,91246.0,91245.0,0.13893444]
[1763455058822,0.00027399,91246.0,91245.0,0.13909194]
[1763455059025,0.00027399,91246.0,91245.0,0.24865194]
[1763455059226,0.00027399,91246.0,91245.0,0.02937444]
[1763455059528,0.00027399,91246.0,91245.0,0.29497444]
[1763455060329,0.01323,91278.0,91246.0,0.10956]
[1763455060525,0.0437,91269.0,91268.0,0.27436706]
[1763455060726,0.0437,91269.0,91268.0,0.32400774]
[1763455061224,0.0437,91269.0,91268.0,0.29497444]
[1763455061429,0.00219803,91270.0,91268.0,0.29497444]
[1763455061630,0.02470803,91270.0,91269.0,0.02937444]
[1763455061830,0.04589803,91270.0,91269.0,0.02937444]
[1763455064938,0.01339439,91278.0,91269.0,0.24862224]
[1763455064939,0.01294439,91278.0,91269.0,0.24862224]
[1763455065231,0.02251387,91286.0,91272.0,0.0290333]
[1763455065434,0.02251387,91286.0,91283.0,0.1096713]
[1763455065631,0.02423,91300.0,91289.0,0.02364]
[1763455065927,0.0449,91291.0,91290.0,0.24970032]
[1763455066131,0.0449,91291.0,91290.0,0.03157247]
[1763455066427,0.0449,91291.0,91290.0,0.05521247]
[1763455066633,0.02423,91300.0,91290.0,0.05521247]
[1763455066835,0.0449,91292.0,91291.0,0.0410616]
[1763455067030,0.0449,91292.0,91291.0,0.0528816]
[1763455067426,0.0449,91292.0,91291.0,0.0418816]
[1763455068235,0.0449,91292.0,91291.0,0.2955816]
[1763455068437,0.0449,91292.0,91291.0,0.2837616]
[1763455068631,0.0449,91292.0,91291.0,0.2955816]
[1763455068934,0.0449,91292.0,91291.0,0.3074016]
[1763455070432,0.0449,91292.0,91291.0,0.0182416]
[1763455072435,0.0449,91291.0,91290.0,0.00219803]
[1763455073228,0.0449,91291.0,91281.0,0.00016439]
[1763455073229,0.0449,91282.0,91281.0,0.00016439]
[1763455073934,0.01278,91289.0,91261.0,0.26552]
[1763455073935,0.0449,91262.0,91261.0,0.26552]
[1763455074823,0.0449,91253.0,91252.0,0.00016439]
[1763455075135,0.02266,91232.0,91231.0,0.1372]
[1763455075333,0.02224,91232.0,91231.0,0.18332]
[1763455075532,0.0449,91232.0,91231.0,0.04612]
[1763455076129,0.00016439,91241.0,91231.0,0.04612]
[1763455076332,0.04506439,91241.0,91231.0,0.4362557]
[1763455076740,0.00016439,91241.0,91240.0,0.04612]
[1763455077234,0.01278,91296.0,91240.0,0.04612]
[1763455077235,0.01116,91290.0,91240.0,0.04612]
[1763455077533,0.04471,91258.0,91257.0,0.23932785]
[1763455077727,0.04471,91258.0,91246.0,0.21812785]
[1763455079034,0.02222,91258.0,91257.0,0.0437]
[1763455079240,0.00016439,91261.0,91260.0,0.05679]
[1763455079625,0.01073392,91294.0,91260.0,0.05679]
[1763455079824,0.04471,91275.0,91274.0,0.23932785]
[1763455080037,0.04471,91275.0,91274.0,0.0212]
[1763455080334,0.02222,91266.0,91265.0,0.21812785]
[1763455080528,0.04471,91257.0,91256.0,0.21829224]
[1763455080727,0.04471,91257.0,91256.0,0.00016439]
[1763455081341,0.04471,91257.0,91256.0,0.04386439]
[1763455081638,0.3166,91297.0,91260.0,0.01309]
[1763455081932,0.01086808,91299.0,91279.0,0.0437]
[1763455081933,0.04690803,91280.0,91279.0,0.0437]
[1763455082327,0.04690803,91280.0,91270.0,0.21829224]
[1763455082528,0.04690803,91280.0,91273.0,0.0290333]
[1763455082723,0.04690803,91280.0,91274.0,0.02914108]
[1763455082724,0.04471,91275.0,91274.0,0.02914108]
[1763455083933,0.04471,91275.0,91274.0,0.10187438]
[1763455084132,0.01078183,91312.0,91286.0,0.01309]
[1763455084326,0.05603,91299.0,91298.0,0.21812785]
[1763455084632,0.05603,91299.0,91286.0,0.01309]
[1763455084633,0.04471,91290.0,91289.0,0.23949214]
[1763455084832,0.00219803,91300.0,91289.0,0.07301096]
[1763455085028,0.00219803,91300.0,91290.0,0.24727452]
[1763455085233,0.02222,91292.0,91291.0,0.02914667]
[1763455085629,0.02222,91292.0,91291.0,0.05034667]
[1763455085837,0.02222,91292.0,91291.0,0.07284667]
[1763455086138,0.001,91299.0,91298.0,0.0437]
[1763455086336,0.001,91299.0,91298.0,0.07284667]
[1763455086337,0.04471,91299.0,91298.0,0.07284667]
[1763455086535,0.04471,91299.0,91298.0,0.02914667]
[1763455087343,0.00027375,91326.0,91299.0,0.05679]
[1763455087532,0.00219803,91320.0,91315.0,0.0437]
[1763455087847,0.04971,91316.0,91306.0,0.21812785]
[1763455088145,0.00219803,91310.0,91309.0,0.0437]
[1763455088939,0.04471,91307.0,91300.0,0.21812785]
[1763455089137,0.04690803,91310.0,91301.0,0.0291082]
[1763455089435,0.006,91316.0,91315.0,0.0437]
[1763455089436,0.05071,91316.0,91315.0,0.0437]
[1763455089638,0.005,91316.0,91315.0,0.07279766]
[1763455090232,0.00027375,91326.0,91325.0,0.05679]
[1763455090840,0.00027375,91326.0,91325.0,0.0437]
[1763455091239,0.00027375,91326.0,91325.0,0.05679]
[1763455092142,0.005,91356.0,91325.0,0.05679]
[1763455092345,0.04471,91341.0,91340.0,0.21812785]
[1763455092547,0.00219803,91340.0,91339.0,0.0437]
[1763455092940,0.04690803,91340.0,91339.0,0.0437]
[1763455093140,0.005,91356.0,91355.0,0.0437]
[1763455093444,0.07855128,91391.0,91365.0,0.0437]
[1763455093739,0.02249363,91366.0,91365.0,0.0437]
[1763455093946,0.00027363,91366.0,91365.0,0.0437]
[1763455094142,0.13746474,91415.0,91365.0,0.0437]
[1763455094143,0.08355128,91396.0,91365.0,0.0437]
[1763455094354,0.04471,91381.0,91380.0,0.00219803]
[1763455094536,0.04471,91371.0,91370.0,0.21812785]
[1763455094742,0.00073267,91370.0,91369.0,0.0437]
[1763455095142,0.00073267,91370.0,91360.0,0.43641989]
[1763455095143,0.01325,91390.0,91370.0,0.00219803]
[1763455095339,0.00073267,91380.0,91370.0,0.00219803]
[1763455095543,0.00073267,91380.0,91379.0,0.0437]
[1763455095842,0.005,91396.0,91380.0,0.00219803]
[1763455096041,0.04471,91381.0,91380.0,0.00219803]
[1763455096639,0.02222,91381.0,91380.0,0.02339803]
[1763455096941,0.04971,91396.0,91380.0,0.00219803]
[1763455097150,0.02222,91387.0,91386.0,0.21812785]
[1763455097344,0.00073267,91390.0,91389.0,0.0437]
[1763455097850,0.005,91396.0,91395.0,0.0437]
[1763455098148,0.00027351,91406.0,91392.0,0.01309]
[1763455098149,0.00027351,91406.0,91405.0,0.0437]
[1763455098335,0.02249351,91406.0,91405.0,0.0437]
[1763455098537,0.02249351,91406.0,91405.0,0.0212]
[1763455098945,0.02249351,91406.0,91400.0,0.00219803]
[1763455098946,0.02222,91401.0,91400.0,0.00219803]
[1763455099143,0.04471,91401.0,91400.0,0.00219803]
[1763455099643,0.0585,91392.0,91391.0,0.21812785]
[1763455099948,0.04482,91391.0,91390.0,0.00219803]
[1763455100150,0.04482,91380.0,91373.0,0.2658]
[1763455100348,0.04555267,91380.0,91370.0,0.21812785]
[1763455100747,0.00073267,91380.0,91379.0,0.04395419]
[1763455100947,0.04555267,91380.0,91379.0,0.00016419]
[1763455101346,0.05945267,91380.0,91379.0,0.00016419]
[1763455101850,0.05945267,91380.0,91360.0,0.00011206]
[1763455101851,0.04482,91371.0,91370.0,0.21812785]
[1763455102046,0.04482,91362.0,91361.0,0.21812785]
[1763455102246,0.0139,91380.0,91361.0,0.04379]
[1763455102548,0.00073267,91380.0,91370.0,0.24178588]
[1763455102846,0.00073267,91380.0,91370.0,0.22032588]
[1763455102847,0.04482,91371.0,91370.0,0.22032588]
[1763455103054,0.04482,91371.0,91370.0,0.00219803]
[1763455103352,0.02168,91371.0,91370.0,0.02365803]
[1763455103752,0.04482,91371.0,91370.0,0.00219803]
[1763455104145,0.04482,91371.0,91370.0,0.02365803]
[1763455104851,0.04482,91371.0,91370.0,0.00219803]
[1763455105244,0.04582,91371.0,91370.0,0.00219803]
[1763455106757,0.04482,91371.0,91370.0,0.00219803]
[1763455107658,0.04482,91371.0,91370.0,0.00519803]
[1763455108258,0.04482,91371.0,91370.0,0.00219803]
[1763455110257,0.04535,91367.0,91366.0,0.00016419]
[1763455112650,0.04535,91361.0,91360.0,0.00011206]
[1763455112853,0.05851,91351.0,91350.0,0.21812785]
[1763455113056,0.02243,91342.0,91341.0,0.21812785]
[1763455113250,0.04535,91341.0,91340.0,0.00219803]
[1763455113754,0.04546206,91341.0,91340.0,0.00219803]
[1763455114953,0.00011206,91341.0,91340.0,0.04810803]
[1763455115148,0.02254206,91341.0,91340.0,0.04810803]
[1763455115346,0.04546206,91341.0,91340.0,0.05410235]
[1763455115550,0.04546206,91341.0,91340.0,0.03123235]
[1763455116055,0.04546206,91341.0,91340.0,0.02506803]
[1763455117257,0.04546206,91341.0,91340.0,0.00219803]
[1763455117855,0.04546206,91341.0,91331.0,0.21829204]
[1763455117856,0.05853,91332.0,91331.0,0.00016419]
[1763455118046,0.04535,91332.0,91331.0,0.00016419]
[1763455118247,0.00011206,91341.0,91340.0,0.04591]
[1763455118248,0.04546206,91341.0,91340.0,0.04591]
[1763455118558,0.00011206,91341.0,91340.0,0.07719438]
[1763455121856,0.04546206,91341.0,91340.0,0.03128438]
[1763455122151,0.04546206,91341.0,91340.0,0.02908635]
[1763455122457,0.05853,91332.0,91331.0,0.00016419]
[1763455122852,0.04535,91327.0,91320.0,0.21812785]
[1763455123365,0.04535,91318.0,91317.0,0.21812785]
[1763455123659,0.04535,91310.0,91309.0,0.02877086]
[1763455123863,0.04608267,91310.0,91309.0,0.02916155]
[1763455124162,0.00073267,91310.0,91309.0,0.07507155]
[1763455124560,0.02316267,91310.0,91309.0,0.07507155]
[1763455124753,0.00073267,91310.0,91309.0,0.07507155]
[1763455124954,0.00011206,91318.0,91317.0,0.04591]
[1763455125155,0.08773404,91358.0,91320.0,0.00219803]
[1763455125355,0.00073267,91340.0,91334.0,0.21812785]
[1763455125551,0.00073267,91340.0,91339.0,0.04591]
[1763455125757,0.01318,91368.0,91340.0,0.00219803]
[1763455126064,0.00073267,91350.0,91349.0,0.04591]
[1763455126258,0.04608267,91350.0,91349.0,0.04591]
[1763455126463,0.04608267,91350.0,91349.0,0.02287]
[1763455126656,0.00073267,91350.0,91349.0,0.04591]
[1763455126850,0.04535,91351.0,91350.0,0.00219803]
[1763455129962,0.05853,91351.0,91350.0,0.00219803]
[1763455130459,0.05853,91351.0,91340.0,0.27397978]
[1763455130460,0.04535,91341.0,91340.0,0.00016419]
[1763455130656,0.04145949,91341.0,91340.0,0.03147895]
[1763455130865,0.04145949,91341.0,91340.0,0.00016419]
[1763455131067,0.04145949,91341.0,91340.0,0.00236222]
[1763455132167,0.04535,91331.0,91330.0,0.27381559]
[1763455132369,0.04535,91331.0,91330.0,0.00219803]
[1763455132571,0.04535,91331.0,91330.0,0.03132814]
[1763455132869,0.02243,91331.0,91330.0,0.07723814]
[1763455133467,0.04551419,91340.0,91339.0,0.04591]
[1763455133860,0.04551419,91340.0,91339.0,0.02287]
[1763455134170,0.04551419,91340.0,91330.0,0.27381559]
[1763455134362,0.04535,91332.0,91331.0,0.02862817]
[1763455134968,0.04535,91331.0,91330.0,0.00219803]
[1763455135163,0.04535,91331.0,91330.0,0.03083363]
[1763455135365,0.04535,91331.0,91330.0,0.00219803]
[1763455135865,0.04535,91331.0,91330.0,0.05370854]
[1763455136065,0.04535,91331.0,91330.0,0.00219803]
[1763455136258,0.04535,91331.0,91330.0,0.03084592]
[1763455136659,0.00016419,91340.0,91330.0,0.07675592]
[1763455136858,0.00016419,91340.0,91331.0,0.02864789]
[1763455137066,0.02243,91333.0,91332.0,0.07240683]
[1763455137264,0.00016419,91340.0,91332.0,0.08584863]
[1763455137460,0.04411,91333.0,91332.0,0.0572]
[1763455137664,0.04411,91333.0,91332.0,0.07241661]
[1763455137872,0.00016419,91340.0,91339.0,0.04376]
[1763455138063,0.04427419,91340.0,91339.0,0.04376]
[1763455138262,0.04427419,91340.0,91339.0,0.02865862]
[1763455139370,0.04411,91331.0,91330.0,0.34634645]
[1763455139565,0.00016419,91340.0,91330.0,0.07462912]
[1763455139766,0.02652,91331.0,91330.0,0.02390803]
[1763455140072,0.02652,91331.0,91330.0,0.03087103]
[1763455140773,0.00016419,91340.0,91321.0,0.00016419]
[1763455140970,0.10948001,91339.0,91321.0,0.00016419]
[1763455141168,0.00016419,91340.0,91321.0,0.00016419]
[1763455141169,0.27397978,91340.0,91321.0,0.00016419]
[1763455141468,0.05891312,91335.0,91321.0,0.00016419]
[1763455141970,0.00016419,91340.0,91321.0,0.00016419]
[1763455142384,0.16347617,91338.0,91321.0,0.00016419]
[1763455142668,0.05891312,91335.0,91299.0,0.04161086]
[1763455142863,0.05891312,91335.0,91310.0,0.27601362]
[1763455143069,0.05891312,91336.0,91310.0,0.27601362]
[1763455143267,0.05891312,91337.0,91310.0,0.27601362]
[1763455143669,0.16482035,91336.0,91314.0,0.00016419]
[1763455143873,0.05891312,91338.0,91330.0,0.00219803]
[1763455144074,0.05891312,91339.0,91330.0,0.00219803]
[1763455144281,0.00016419,91340.0,91339.0,0.04376]
[1763455145869,0.00016419,91340.0,91339.0,0.02171]
[1763455146878,0.00016419,91340.0,91325.0,0.01344]
[1763455147064,0.00016419,91340.0,91330.0,0.00219803]
[1763455147469,0.00016419,91340.0,91310.0,0.27381559]
[1763455147684,0.00016419,91340.0,91320.0,0.00219803]
[1763455147978,0.16008,91339.0,91320.0,0.00219803]
[1763455151281,0.16008,91339.0,91320.0,0.27601362]
[1763455151675,0.16008,91339.0,91320.0,0.00219803]
[1763455151970,0.00016419,91340.0,91339.0,0.02171]
[1763455152175,0.00016419,91340.0,91339.0,0.04376]
[1763455158084,0.00027363,91366.0,91364.0,0.01344]
[1763455158287,0.00027363,91366.0,91360.0,0.00219803]
[1763455158589,0.1642812,91365.0,91360.0,0.00219803]
[1763455160086,0.1642812,91365.0,91353.0,0.00016419]
[1763455160778,0.00127363,91366.0,91365.0,0.04361]
[1763455160978,0.00027363,91366.0,91365.0,0.04361]
[1763455162085,0.00227363,91366.0,91365.0,0.04361]
[1763455162983,0.00227363,91366.0,91360.0,0.00219803]
[1763455163984,0.00227363,91366.0,91365.0,0.02187]
[1763455164186,0.00127363,91366.0,91360.0,0.00219803]